[Event "Schack-SM 2023: Mastarklassen"]
[Site "Helsingborg Arena, Mellersta Stenbocksgatan 14, Helsingborg, Sweden"]
[Date "2023.07.06"]
[Round "6.2"]
[White "Lundin, Jan"]
[Black "Mardell, Jimmy"]
[Result "1-0"]
[TimeControl "90 minutes for 40 moves + 30 minutes for the rest of games + 30 seconds per move from move one."]
[WhiteTitle "FM"]
[WhiteElo "2203"]
[BlackElo "2160"]

1. c4 {[%clk 01:08:12]} {[%emt 00:22:47]} e5 {[%clk 01:30:38]} {[%emt
00:00:23]} 2. Nc3 {[%clk 01:08:35]} {[%emt 00:00:07]} Nf6 {[%clk 01:30:45]}
{[%emt 00:00:22]} 3. e4 {[%clk 01:08:48]} {[%emt 00:00:18]} Bb4 {[%clk
01:29:51]} {[%emt 00:01:24]} 4. g3 {[%clk 01:09:07]} {[%emt 00:00:10]} O-O
{[%clk 01:28:01]} {[%emt 00:02:20]} 5. Nge2 {[%clk 01:06:53]} {[%emt 00:02:44]}
Re8 {[%clk 01:19:17]} {[%emt 00:09:15]} 6. Bg2 {[%clk 01:06:59]} {[%emt
00:00:23]} a5 {[%clk 01:10:58]} {[%emt 00:08:49]} 7. O-O {[%clk 01:06:00]}
{[%emt 00:01:28]} Nc6 {[%clk 01:09:23]} {[%emt 00:02:07]} 8. d3 {[%clk
01:06:08]} {[%emt 00:00:22]} h6 {[%clk 01:06:28]} {[%emt 00:03:25]} 9. h3
{[%clk 01:01:21]} {[%emt 00:05:16]} Bc5 {[%clk 01:05:12]} {[%emt 00:01:46]} 10.
Kh2 {[%clk 00:58:24]} {[%emt 00:03:26]} d6 {[%clk 01:01:11]} {[%emt 00:04:32]}
11. Nb5 {[%clk 00:54:19]} {[%emt 00:04:34]} Na7 {[%clk 00:51:49]} {[%emt
00:09:53]} 12. a4 {[%clk 00:52:20]} {[%emt 00:02:29]} Nxb5 {[%clk 00:44:49]}
{[%emt 00:07:30]} 13. axb5 {[%clk 00:52:41]} {[%emt 00:00:09]} c6 {[%clk
00:45:13]} {[%emt 00:00:06]} 14. bxc6 {[%clk 00:49:35]} {[%emt 00:03:36]} bxc6
{[%clk 00:45:40]} {[%emt 00:00:04]} 15. f4 {[%clk 00:48:58]} {[%emt 00:01:07]}
Qb6 {[%clk 00:39:07]} {[%emt 00:07:03]} 16. fxe5 {[%clk 00:41:25]} {[%emt
00:08:01]} dxe5 {[%clk 00:39:33]} {[%emt 00:00:05]} 17. Bxh6 {[%clk 00:41:14]}
{[%emt 00:00:41]} gxh6 {[%clk 00:28:38]} {[%emt 00:11:26]} 18. Rxf6 {[%clk
00:40:58]} {[%emt 00:00:44]} Re6 {[%clk 00:28:10]} {[%emt 00:00:59]} 19. Qf1
{[%clk 00:29:02]} {[%emt 00:12:26]} Ra7 {[%clk 00:21:14]} {[%emt 00:07:26]} 20.
d4 {[%clk 00:22:33]} {[%emt 00:06:59]} exd4 {[%clk 00:06:45]} {[%emt 00:15:00]}
21. Rxe6 {[%clk 00:22:42]} {[%emt 00:00:21]} Bxe6 {[%clk 00:07:11]} {[%emt
00:00:03]} 22. Nf4 {[%clk 00:22:57]} {[%emt 00:00:14]} Re7 {[%clk 00:05:12]}
{[%emt 00:02:30]} 23. Nh5 {[%clk 00:22:56]} {[%emt 00:00:31]} Rb7 {[%clk
00:02:59]} {[%emt 00:02:44]} 24. e5 {[%clk 00:18:16]} {[%emt 00:05:09]} Qc7
{[%clk 00:01:58]} {[%emt 00:01:32]} 25. Qf4 {[%clk 00:15:38]} {[%emt 00:03:07]}
Kf8 {[%clk 00:00:52]} {[%emt 00:01:37]} 26. Qxh6+ {[%clk 00:15:16]} {[%emt
00:00:51]} Ke7 {[%clk 00:01:07]} {[%emt 00:00:15]} 27. Qg5+ {[%clk 00:12:36]}
{[%emt 00:03:10]} Kd7 {[%clk 00:01:03]} {[%emt 00:00:34]} 28. Nf4 {[%clk
00:11:01]} {[%emt 00:02:05]} Be7 {[%clk 00:00:58]} {[%emt 00:00:36]} 29. Qh5
{[%clk 00:11:03]} {[%emt 00:00:26]} Rxb2 {[%clk 00:01:07]} {[%emt 00:00:22]} 30.
Rd1 {[%clk 00:06:28]} {[%emt 00:05:05]} Qa7 {[%clk 00:00:49]} {[%emt 00:00:48]}
31. Qf3 {[%clk 00:05:05]} {[%emt 00:01:53]} c5 {[%clk 00:00:50]} {[%emt
00:00:30]} 32. Qc6+ {[%clk 00:03:32]} {[%emt 00:02:03]} Kd8 {[%clk 00:01:16]}
{[%emt 00:00:03]} 33. Nd5 {[%clk 00:02:09]} {[%emt 00:01:53]} a4 {[%clk
00:00:37]} {[%emt 00:01:10]} 34. Ra1 {[%clk 00:01:58]} {[%emt 00:00:40]} a3
{[%clk 00:00:40]} {[%emt 00:00:27]} 35. Rxa3 {[%clk 00:01:41]} {[%emt
00:00:48]} Rxg2+ {[%clk 00:00:46]} {[%emt 00:00:24]} 36. Kxg2 {[%clk 00:02:01]}
{[%emt 00:00:09]} 1-0

[Event "Schack-SM 2023: Sverigemastarklassen"]
[Site "Helsingborg Arena, Mellersta Stenbocksgatan 14, Helsingborg, Sweden"]
[Date "2023.07.06"]
[Round "6.2"]
[White "Pantzar, Milton"]
[Black "Kucuksari, Kaan"]
[Result "1-0"]
[TimeControl "90 minutes for 40 moves + 30 minutes for the rest of the game + 30 seconds per move from move one."]
[WhiteTitle "IM"]
[BlackTitle "IM"]
[WhiteElo "2442"]
[BlackElo "2512"]

1. d4 {[%clk 01:30:53]} {[%emt 00:00:06]} g6 {[%clk 01:30:59]} {[%emt
00:00:01]} 2. Nf3 {[%clk 01:29:40]} {[%emt 00:01:43]} Bg7 {[%clk 01:31:13]}
{[%emt 00:00:16]} 3. e4 {[%clk 01:27:47]} {[%emt 00:02:23]} d6 {[%clk
01:31:41]} {[%emt 00:00:03]} 4. Bd3 {[%clk 01:26:14]} {[%emt 00:02:02]} e5
{[%clk 01:31:09]} {[%emt 00:01:02]} 5. c3 {[%clk 01:23:08]} {[%emt 00:03:36]}
Nc6 {[%clk 01:30:46]} {[%emt 00:00:53]} 6. dxe5 {[%clk 01:14:20]} {[%emt
00:09:18]} Nxe5 {[%clk 01:28:00]} {[%emt 00:03:15]} 7. Nxe5 {[%clk 01:14:05]}
{[%emt 00:00:45]} dxe5 {[%clk 01:28:12]} {[%emt 00:00:19]} 8. O-O {[%clk
01:04:07]} {[%emt 00:10:28]} Nf6 {[%clk 01:28:27]} {[%emt 00:00:16]} 9. a4
{[%clk 00:57:43]} {[%emt 00:06:53]} O-O {[%clk 01:28:02]} {[%emt 00:00:54]} 10.
a5 {[%clk 00:56:56]} {[%emt 00:01:17]} Qe7 {[%clk 01:28:14]} {[%emt 00:00:19]}
11. Qe2 {[%clk 00:54:57]} {[%emt 00:02:29]} a6 {[%clk 01:23:48]} {[%emt
00:04:56]} 12. b4 {[%clk 00:49:32]} {[%emt 00:05:55]} Nh5 {[%clk 01:24:05]}
{[%emt 00:00:13]} 13. g3 {[%clk 00:49:00]} {[%emt 00:01:02]} Bh3 {[%clk
01:20:29]} {[%emt 00:04:06]} 14. Re1 {[%clk 00:47:35]} {[%emt 00:01:55]} Nf6
{[%clk 01:18:57]} {[%emt 00:02:02]} 15. Na3 {[%clk 00:40:51]} {[%emt 00:07:14]}
Nd7 {[%clk 01:09:24]} {[%emt 00:10:04]} 16. Nc4 {[%clk 00:39:26]} {[%emt
00:01:54]} Rfd8 {[%clk 01:03:58]} {[%emt 00:05:57]} 17. Ne3 {[%clk 00:33:36]}
{[%emt 00:06:20]} Be6 {[%clk 01:02:49]} {[%emt 00:01:38]} 18. Ba3 {[%clk
00:32:20]} {[%emt 00:01:46]} Qe8 {[%clk 01:03:04]} {[%emt 00:00:16]} 19. Bb2
{[%clk 00:26:59]} {[%emt 00:05:52]} Bf8 {[%clk 01:00:56]} {[%emt 00:02:38]} 20.
Rab1 {[%clk 00:23:45]} {[%emt 00:03:44]} Nf6 {[%clk 00:58:06]} {[%emt
00:03:19]} 21. Ba1 {[%clk 00:21:22]} {[%emt 00:02:53]} Qc6 {[%clk 00:56:11]}
{[%emt 00:02:25]} 22. c4 {[%clk 00:19:55]} {[%emt 00:01:58]} Nd7 {[%clk
00:53:23]} {[%emt 00:03:19]} 23. Nd5 {[%clk 00:18:54]} {[%emt 00:01:31]} b6
{[%clk 00:51:11]} {[%emt 00:02:42]} 24. axb6 {[%clk 00:15:32]} {[%emt
00:03:52]} cxb6 {[%clk 00:49:56]} {[%emt 00:01:44]} 25. Rec1 {[%clk 00:14:40]}
{[%emt 00:01:21]} Bxd5 {[%clk 00:43:14]} {[%emt 00:07:13]} 26. cxd5 {[%clk
00:12:17]} {[%emt 00:02:53]} Qb7 {[%clk 00:43:42]} {[%emt 00:00:01]} 27. Bc3
{[%clk 00:11:08]} {[%emt 00:01:39]} Rdc8 {[%clk 00:43:04]} {[%emt 00:01:09]} 28.
Bd2 {[%clk 00:08:50]} {[%emt 00:02:47]} Rxc1+ {[%clk 00:43:19]} {[%emt
00:00:15]} 29. Rxc1 {[%clk 00:08:45]} {[%emt 00:00:35]} b5 {[%clk 00:41:57]}
{[%emt 00:01:52]} 30. Qe3 {[%clk 00:05:31]} {[%emt 00:03:43]} Rc8 {[%clk
00:42:26]} {[%emt 00:00:02]} 31. Rxc8 {[%clk 00:05:11]} {[%emt 00:00:50]} Qxc8
{[%clk 00:42:54]} {[%emt 00:00:01]} 32. Qa7 {[%clk 00:04:28]} {[%emt 00:01:13]}
Bd6 {[%clk 00:41:35]} {[%emt 00:01:50]} 33. Kg2 {[%clk 00:03:43]} {[%emt
00:01:15]} Bb8 {[%clk 00:40:37]} {[%emt 00:01:28]} 34. Qe3 {[%clk 00:03:42]}
{[%emt 00:00:31]} Bc7 {[%clk 00:38:44]} {[%emt 00:02:23]} 35. Qe1 {[%clk
00:03:37]} {[%emt 00:00:34]} Bd6 {[%clk 00:38:37]} {[%emt 00:00:37]} 36. Qb1
{[%clk 00:02:26]} {[%emt 00:01:41]} Nb6 {[%clk 00:38:24]} {[%emt 00:00:44]} 37.
Qa2 {[%clk 00:02:25]} {[%emt 00:00:31]} Kg7 {[%clk 00:25:17]} {[%emt 00:13:37]}
38. h4 {[%clk 00:02:32]} {[%emt 00:00:24]} h5 {[%clk 00:19:50]} {[%emt
00:05:56]} 39. Qa1 {[%clk 00:02:21]} {[%emt 00:00:41]} Nc4 {[%clk 00:17:31]}
{[%emt 00:02:49]} 40. Bc3 {[%clk 00:01:16]} {[%emt 00:01:35]} Kh7 {[%clk
00:16:44]} {[%emt 00:01:17]} 41. Kh2 {[%clk 00:24:10]} {[%emt 00:07:36]} Be7
{[%clk 00:35:36]} {[%emt 00:11:38]} 42. Bxe5 {[%clk 00:20:00]} {[%emt
00:04:39]} Bxb4 {[%clk 00:35:52]} {[%emt 00:00:14]} 43. Bf4 {[%clk 00:15:14]}
{[%emt 00:05:17]} Be7 {[%clk 00:34:15]} {[%emt 00:02:07]} 44. Bxc4 {[%clk
00:13:51]} {[%emt 00:01:54]} bxc4 {[%clk 00:34:13]} {[%emt 00:00:32]} 45. d6
{[%clk 00:13:45]} {[%emt 00:00:36]} Bd8 {[%clk 00:33:48]} {[%emt 00:00:54]} 46.
Qe5 {[%clk 00:09:15]} {[%emt 00:05:00]} Qe6 {[%clk 00:27:16]} {[%emt 00:07:02]}
47. Qxe6 {[%clk 00:08:03]} {[%emt 00:01:41]} fxe6 {[%clk 00:27:45]} {[%emt
00:00:01]} 48. Bg5 {[%clk 00:08:28]} {[%emt 00:00:06]} Bb6 {[%clk 00:25:56]}
{[%emt 00:02:20]} 49. d7 {[%clk 00:08:49]} {[%emt 00:00:09]} Kg7 {[%clk
00:24:44]} {[%emt 00:01:41]} 50. d8=Q {[%clk 00:09:07]} {[%emt 00:00:12]} Bxd8
{[%clk 00:25:13]} {[%emt 00:00:02]} 51. Bxd8 {[%clk 00:09:29]} {[%emt
00:00:08]} Kf7 {[%clk 00:25:36]} {[%emt 00:00:06]} 52. Ba5 {[%clk 00:08:05]}
{[%emt 00:01:54]} Ke7 {[%clk 00:25:57]} {[%emt 00:00:08]} 53. f4 {[%clk
00:07:48]} {[%emt 00:00:47]} Kd6 {[%clk 00:26:24]} {[%emt 00:00:03]} 54. Bc3
{[%clk 00:07:29]} {[%emt 00:00:49]} Kc5 {[%clk 00:26:47]} {[%emt 00:00:08]} 55.
g4 {[%clk 00:07:37]} {[%emt 00:00:22]} Kd6 {[%clk 00:27:14]} {[%emt 00:00:03]}
56. Kg3 {[%clk 00:07:54]} {[%emt 00:00:12]} Ke7 {[%clk 00:27:40]} {[%emt
00:00:04]} 57. gxh5 {[%clk 00:08:15]} {[%emt 00:00:10]} gxh5 {[%clk 00:28:09]}
{[%emt 00:00:01]} 58. Kf3 {[%clk 00:08:35]} {[%emt 00:00:09]} Kd6 {[%clk
00:28:33]} {[%emt 00:00:06]} 59. Ke3 {[%clk 00:08:49]} {[%emt 00:00:17]} Kc5
{[%clk 00:29:02]} 60. f5 {[%clk 00:08:55]} {[%emt 00:00:23]} 1-0

[ePGN "0.1;DGT LiveChess/2.2.5"]

[Event "Schack-SM 2023: Mastarklassen-elit"]
[Site "Helsingborg Arena, Mellersta Stenbocksgatan 14, Helsingborg, Sweden"]
[Date "2023.07.06"]
[Round "6.1"]
[White "Olund, Joar"]
[Black "Lind, Jan-Olov"]
[Result "1-0"]
[TimeControl "90 minutes for 40 moves + 30 minutes for the rest of games + 30 seconds per move from move one."]
[WhiteTitle "FM"]
[WhiteElo "2399"]
[BlackElo "2191"]

1. d4 {[%clk 01:28:12]} {[%emt 00:02:48]} g6 {[%clk 01:30:42]} {[%emt
00:00:18]} 2. e4 {[%clk 01:28:12]} {[%emt 00:00:31]} Bg7 {[%clk 01:31:03]}
{[%emt 00:00:07]} 3. Nf3 {[%clk 01:28:38]} {[%emt 00:00:05]} d6 {[%clk
01:31:20]} {[%emt 00:00:12]} 4. Bc4 {[%clk 01:29:06]} {[%emt 00:00:03]} e6
{[%clk 01:27:49]} {[%emt 00:04:00]} 5. Bb3 {[%clk 01:29:28]} {[%emt 00:00:09]}
Ne7 {[%clk 01:26:11]} {[%emt 00:02:08]} 6. c3 {[%emt 00:01:39]} O-O {[%emt
00:12:59]} 7. Nbd2 {[%emt 00:05:52]} Nd7 {[%clk 01:18:04]} {[%emt 00:00:13]} 8.
Nf1 {[%clk 01:07:35]} c5 {[%clk 01:08:26]} {[%emt 00:21:55]} 9. Ng3 {[%emt
00:10:30]} cxd4 {[%clk 01:06:50]} 10. cxd4 {[%clk 01:00:05]} {[%emt 00:00:05]}
d5 {[%clk 01:06:27]} {[%emt 00:00:53]} 11. e5 {[%clk 00:54:46]} {[%emt
00:05:49]} Nc6 {[%clk 01:01:26]} {[%emt 00:05:31]} 12. O-O {[%clk 00:51:44]}
{[%emt 00:03:33]} f6 {[%clk 00:57:54]} {[%emt 00:04:01]} 13. exf6 {[%clk
00:52:14]} {[%emt 00:00:25]} Qxf6 {[%clk 00:58:23]} {[%emt 00:00:36]} 14. Bg5
{[%clk 00:51:00]} {[%emt 00:01:43]} Qf7 {[%clk 00:57:57]} {[%emt 00:00:56]} 15.
Qd2 {[%clk 00:50:45]} {[%emt 00:00:45]} Nb6 {[%clk 00:56:46]} {[%emt 00:01:41]}
16. Rae1 {[%clk 00:48:11]} {[%emt 00:03:04]} Bd7 {[%clk 00:45:01]} {[%emt
00:12:16]} 17. h4 {[%clk 00:41:02]} {[%emt 00:07:39]} Qe8 {[%clk 00:36:52]}
{[%emt 00:08:39]} 18. Ne2 {[%clk 00:37:05]} {[%emt 00:04:27]} a5 {[%clk
00:32:14]} {[%emt 00:05:07]} 19. a3 {[%clk 00:31:46]} {[%emt 00:05:49]} a4
{[%clk 00:30:25]} {[%emt 00:02:20]} 20. Ba2 {[%clk 00:31:53]} {[%emt 00:00:22]}
Rf5 {[%clk 00:24:51]} {[%emt 00:06:04]} 21. Ne5 {[%clk 00:24:36]} {[%emt
00:07:48]} Nxe5 {[%clk 00:20:39]} {[%emt 00:04:41]} 22. dxe5 {[%clk 00:24:46]}
{[%emt 00:00:20]} Bb5 {[%clk 00:18:31]} {[%emt 00:02:38]} 23. Nd4 {[%clk
00:24:47]} {[%emt 00:00:30]} Bxf1 {[%clk 00:18:07]} {[%emt 00:00:54]} 24. Nxf5
{[%clk 00:25:07]} {[%emt 00:00:10]} gxf5 {[%clk 00:18:16]} {[%emt 00:00:20]} 25.
Rxf1 {[%clk 00:24:49]} {[%emt 00:00:48]} Rc8 {[%clk 00:14:26]} {[%emt
00:04:20]} 26. Qd4 {[%clk 00:14:02]} {[%emt 00:11:18]} Qb5 {[%clk 00:11:43]}
{[%emt 00:03:13]} 27. Bf6 {[%clk 00:10:27]} {[%emt 00:04:05]} Nd7 {[%clk
00:06:50]} {[%emt 00:05:23]} 28. g4 {[%clk 00:08:24]} {[%emt 00:02:32]} Qc5
{[%clk 00:06:38]} {[%emt 00:00:42]} 29. Qxc5 {[%clk 00:03:39]} {[%emt
00:05:16]} Rxc5 {[%clk 00:07:01]} {[%emt 00:00:07]} 30. Be7 {[%clk 00:03:01]}
{[%emt 00:01:07]} Rb5 {[%clk 00:06:42]} {[%emt 00:00:49]} 31. gxf5 {[%clk
00:03:08]} {[%emt 00:00:24]} exf5 {[%clk 00:04:12]} {[%emt 00:03:00]} 32. e6
{[%clk 00:02:20]} {[%emt 00:01:19]} Nb6 {[%clk 00:02:11]} {[%emt 00:02:30]} 33.
Re1 {[%clk 00:01:16]} {[%emt 00:01:32]} Nc8 {[%clk 00:01:17]} {[%emt 00:01:26]}
34. Bb4 {[%clk 00:01:06]} {[%emt 00:00:40]} Rxb4 {[%clk 00:00:56]} {[%emt
00:00:51]} 35. axb4 {[%clk 00:01:26]} {[%emt 00:00:10]} Ne7 {[%clk 00:01:21]}
{[%emt 00:00:04]} 36. Re2 {[%clk 00:01:11]} {[%emt 00:00:45]} b5 {[%clk
00:01:32]} {[%emt 00:00:20]} 37. Bb1 {[%clk 00:01:23]} {[%emt 00:00:18]} Bf6
{[%clk 00:01:37]} {[%emt 00:00:24]} 38. Bd3 {[%clk 00:00:48]} {[%emt 00:01:05]}
Nc6 {[%clk 00:02:04]} {[%emt 00:00:03]} 39. e7 {[%clk 00:00:39]} {[%emt
00:00:39]} Nxe7 {[%clk 00:02:03]} {[%emt 00:00:31]} 40. h5 {[%clk 00:00:34]}
{[%emt 00:00:35]} Kf8 {[%clk 00:01:13]} {[%emt 00:01:20]} 41. Bxb5 {[%clk
00:29:33]} {[%emt 00:01:31]} f4 {[%clk 00:21:03]} {[%emt 00:10:40]} 42. Bxa4
{[%clk 00:26:33]} {[%emt 00:03:32]} Nf5 {[%clk 00:20:06]} {[%emt 00:01:26]} 43.
Re6 {[%clk 00:24:57]} {[%emt 00:02:05]} Kf7 {[%clk 00:19:29]} {[%emt 00:01:07]}
44. Ra6 {[%clk 00:25:01]} {[%emt 00:00:27]} 1-0

[Event "Schack-SM 2023: Junior-SM"]
[Site "Helsingborg Arena, Mellersta Stenbocksgatan 14, Helsingborg, Sweden"]
[Date "2023.07.06"]
[Round "6.4"]
[White "Ostlund, Joar"]
[Black "Wernberg, Hugo"]
[Result "1-0"]
[TimeControl "90 minutes for 40 moves + 30 minutes for the rest of the game + 30 seconds per move from move one."]
[WhiteTitle "CM"]
[BlackTitle "FM"]
[WhiteElo "2265"]
[BlackElo "2217"]

1. d4 {[%clk 01:30:57]} {[%emt 00:00:02]} d5 {[%clk 01:30:54]} {[%emt
00:00:06]} 2. c4 {[%clk 01:31:18]} {[%emt 00:00:09]} e6 {[%clk 01:31:20]}
{[%emt 00:00:05]} 3. Nc3 {[%clk 01:31:18]} {[%emt 00:00:30]} a6 {[%clk
01:31:45]} {[%emt 00:00:05]} 4. cxd5 {[%clk 01:31:34]} {[%emt 00:00:14]} exd5
{[%clk 01:32:09]} {[%emt 00:00:06]} 5. Nf3 {[%clk 01:30:20]} {[%emt 00:01:44]}
c6 {[%clk 01:32:32]} {[%emt 00:00:06]} 6. Bf4 {[%clk 01:29:28]} {[%emt
00:01:22]} Bd6 {[%clk 01:32:56]} {[%emt 00:00:06]} 7. Bxd6 {[%clk 01:29:25]}
{[%emt 00:00:32]} Qxd6 {[%clk 01:33:20]} {[%emt 00:00:07]} 8. e3 {[%clk
01:29:06]} {[%emt 00:00:48]} Ne7 {[%clk 01:33:43]} {[%emt 00:00:08]} 9. Qb3
{[%clk 01:24:29]} {[%emt 00:05:06]} Nd7 {[%clk 01:33:25]} {[%emt 00:00:48]} 10.
Bd3 {[%clk 01:19:35]} {[%emt 00:05:25]} Nf6 {[%clk 01:33:31]} {[%emt 00:00:23]}
11. O-O {[%clk 01:18:33]} {[%emt 00:01:32]} O-O {[%clk 01:33:45]} {[%emt
00:00:15]} 12. Na4 {[%clk 01:09:51]} {[%emt 00:09:13]} Bf5 {[%clk 01:33:12]}
{[%emt 00:01:03]} 13. Bxf5 {[%clk 01:08:35]} {[%emt 00:01:46]} Nxf5 {[%clk
01:33:35]} {[%emt 00:00:08]} 14. Nc5 {[%clk 01:08:44]} {[%emt 00:00:21]} Rfb8
{[%clk 01:32:40]} {[%emt 00:01:25]} 15. Rac1 {[%clk 01:07:59]} {[%emt
00:01:15]} Qe7 {[%clk 01:19:32]} {[%emt 00:13:37]} 16. Ne5 {[%clk 01:01:11]}
{[%emt 00:07:18]} Nd6 {[%clk 01:16:38]} {[%emt 00:03:25]} 17. f3 {[%clk
00:57:50]} {[%emt 00:03:51]} Nde8 {[%clk 01:02:43]} {[%emt 00:14:23]} 18. Rc2
{[%clk 00:51:41]} {[%emt 00:06:40]} Nc7 {[%clk 00:50:18]} {[%emt 00:12:55]} 19.
Na4 {[%clk 00:42:53]} {[%emt 00:09:18]} Qe8 {[%clk 00:38:59]} {[%emt 00:11:48]}
20. g4 {[%clk 00:39:42]} {[%emt 00:03:41]} Ne6 {[%clk 00:36:14]} {[%emt
00:03:15]} 21. Nb6 {[%clk 00:39:42]} {[%emt 00:00:31]} Ra7 {[%clk 00:36:04]}
{[%emt 00:00:40]} 22. Rg2 {[%clk 00:35:58]} {[%emt 00:04:14]} Nf8 {[%clk
00:33:09]} {[%emt 00:03:25]} 23. e4 {[%emt 00:20:13]} Ne6 {[%emt 00:04:54]} 24.
Qe3 {[%emt 00:02:23]} Qd8 {[%emt 00:02:42]} 25. g5 {[%clk 00:17:44]} {[%emt
00:00:44]} Qxb6 {[%clk 00:16:43]} {[%emt 00:06:45]} 26. gxf6 {[%clk 00:17:55]}
{[%emt 00:00:19]} Rd8 {[%clk 00:16:40]} {[%emt 00:00:33]} 27. Rxg7+ {[%clk
00:16:14]} 1-0

[Event "Schack-SM 2023: Mastarklassen"]
[Site "Helsingborg Arena, Mellersta Stenbocksgatan 14, Helsingborg, Sweden"]
[Date "2023.07.06"]
[Round "6.3"]
[White "Soppela, Toni"]
[Black "Cederstam, Carl"]
[Result "0-1"]
[TimeControl "90 minutes for 40 moves + 30 minutes for the rest of games + 30 seconds per move from move one."]
[BlackTitle "FM"]
[WhiteElo "2032"]
[BlackElo "2196"]

1. d4 {[%clk 01:30:43]} {[%emt 00:00:15]} Nf6 {[%clk 01:30:05]} {[%emt
00:00:56]} 2. c4 {[%clk 01:30:50]} {[%emt 00:00:22]} g6 {[%clk 01:30:21]}
{[%emt 00:00:15]} 3. Nc3 {[%clk 01:31:02]} {[%emt 00:00:18]} d5 {[%clk
01:30:34]} {[%emt 00:00:17]} 4. cxd5 {[%clk 01:31:04]} {[%emt 00:00:27]} Nxd5
{[%clk 01:30:57]} {[%emt 00:00:07]} 5. e4 {[%clk 01:31:22]} {[%emt 00:00:12]}
Nxc3 {[%clk 01:31:21]} {[%emt 00:00:07]} 6. bxc3 {[%clk 01:31:45]} {[%emt
00:00:06]} Bg7 {[%clk 01:31:43]} {[%emt 00:00:08]} 7. Nf3 {[%clk 01:31:27]}
{[%emt 00:00:49]} c5 {[%clk 01:32:02]} {[%emt 00:00:11]} 8. Bb5+ {[%clk
01:31:36]} {[%emt 00:00:22]} Nc6 {[%clk 01:32:25]} {[%emt 00:00:07]} 9. Rb1
{[%clk 01:30:31]} {[%emt 00:01:33]} O-O {[%clk 01:32:40]} {[%emt 00:00:16]} 10.
d5 {[%clk 01:29:40]} {[%emt 00:01:21]} Ne5 {[%clk 01:33:01]} {[%emt 00:00:10]}
11. O-O {[%clk 01:29:31]} {[%emt 00:00:37]} Qd6 {[%clk 01:24:11]} {[%emt
00:09:20]} 12. Nd2 {[%clk 01:10:42]} {[%emt 00:19:18]} Ng4 {[%clk 01:21:36]}
{[%emt 00:03:08]} 13. g3 {[%clk 01:10:35]} {[%emt 00:00:35]} f5 {[%clk
01:11:26]} {[%emt 00:10:41]} 14. Be2 {[%clk 00:57:35]} {[%emt 00:13:28]} Nf6
{[%clk 01:09:36]} {[%emt 00:02:22]} 15. exf5 {[%clk 00:37:30]} {[%emt
00:20:35]} Bxf5 {[%clk 01:04:40]} {[%emt 00:05:26]} 16. Rxb7 {[%clk 00:31:42]}
{[%emt 00:06:15]} Nxd5 {[%clk 01:01:17]} {[%emt 00:03:55]} 17. Qb3 {[%clk
00:29:24]} {[%emt 00:02:47]} Kh8 {[%clk 01:00:51]} {[%emt 00:00:57]} 18. c4
{[%clk 00:26:29]} {[%emt 00:03:25]} Nc3 {[%clk 00:47:48]} {[%emt 00:13:34]} 19.
Bf3 {[%clk 00:24:16]} {[%emt 00:02:42]} Bc8 {[%clk 00:47:44]} {[%emt 00:00:35]}
20. Rb6 {[%clk 00:19:51]} {[%emt 00:04:55]} axb6 {[%clk 00:48:03]} {[%emt
00:00:12]} 21. Bxa8 {[%clk 00:20:09]} {[%emt 00:00:10]} Ne2+ {[%clk 00:48:18]}
{[%emt 00:00:15]} 22. Kh1 {[%clk 00:19:41]} {[%emt 00:00:57]} Nxc1 {[%clk
00:48:21]} {[%emt 00:00:28]} 0-1

[ePGN "0.1;DGT LiveChess/2.2.5"]